fUSD/lending_fUSD_20250629
["ID","MTS","AMOUNT","RATE_DAILY","PERIOD"]
[368551513,1751203866076,-490.0,0.00024931,3]
[368551514,1751203866086,-2114.33,0.00024931,3]
[368551515,1751203866096,-240.0,0.00024931,3]
[368551516,1751203866105,-490.0,0.00024931,3]
[368551517,1751203866117,-869.99,0.00024931,3]
[368551518,1751203866127,-490.0,0.00024931,3]
[368551519,1751203866137,-490.0,0.00024931,3]
[368551520,1751203866147,-490.0,0.00024931,3]
[368551521,1751203866157,-380.21264633,0.00024931,3]
[368551522,1751203866166,-2939.82,0.00024931,3]
[368551523,1751203866176,-692.38,0.00024931,3]
[368551524,1751203866186,-490.0,0.00024931,3]
[368551525,1751203866195,-1822.22,0.00024931,3]
[368551526,1751203866205,-490.0,0.00024931,3]
[368551527,1751203866215,-1655.85,0.00024931,3]
[368551528,1751203866224,-490.0,0.00024931,3]
[368551529,1751203866233,-490.0,0.00024931,3]
[368551530,1751203866243,-840.86,0.00024931,3]
[368551531,1751203866252,-490.0,0.00024931,3]
[368551532,1751203866261,-490.0,0.00024931,3]
[368551533,1751203866271,-734.48,0.00024931,3]
[368551534,1751203866280,-490.0,0.00024931,3]
[368551535,1751203866290,-490.0,0.00024931,3]
[368551536,1751203866299,-1482.18,0.00024931,3]
[368551537,1751203866308,-490.0,0.00024931,3]
[368551538,1751203866318,-511.02,0.00024931,3]
[368551539,1751203866327,-490.0,0.00024931,3]
[368551540,1751203866336,-490.0,0.00024931,3]
[368551541,1751203866346,-617.9,0.00024931,3]
[368551542,1751203866355,-974.21,0.00024931,3]
[368551543,1751203866366,-490.0,0.00024931,3]
[368551544,1751203866375,-586.2,0.00024931,3]
[368551545,1751203866385,-490.0,0.00024931,3]
[368551546,1751203866606,-1759.28,0.00024931,3]
[368551547,1751203866618,-981.65,0.00024931,3]
[368551548,1751203866627,-1137.3,0.00024931,3]
[368551549,1751203866637,-490.0,0.00024931,3]
[368551550,1751203866646,-490.0,0.00024931,3]
[368551551,1751203866657,-490.0,0.00024931,3]
[368551552,1751203866667,-1069.58,0.00024931,3]
[368551553,1751203866676,-869.85,0.00024931,3]
[368551554,1751203866686,-490.0,0.00024931,3]
[368551555,1751203866696,-490.0,0.00024931,3]
[368551556,1751203866705,-647.39,0.00024931,3]
[368551557,1751203866715,-1978.53,0.00024931,3]
[368551558,1751203866724,-490.0,0.00024931,3]
[368551559,1751203866733,-490.0,0.00024931,3]
[368551560,1751203866743,-521.47,0.00024931,3]
[368551561,1751203866752,-490.0,0.00024931,3]
[368551562,1751203866761,-1253.83,0.00024931,3]
[368551563,1751203866770,-673.19,0.00024931,3]
[368551564,1751203866780,-2820.48,0.00024931,3]
[368551565,1751203866789,-777.02,0.00024931,3]
[368551566,1751203866798,-1036.3,0.00024931,3]
[368551567,1751203866807,-2275.15,0.00024931,3]
[368551568,1751203866816,-1593.11,0.00024931,3]
[368551569,1751203866826,-940.94,0.00024931,3]
[368551570,1751203866835,-490.0,0.00024931,3]
[368551571,1751203866844,-490.0,0.00024931,3]
[368551572,1751203866853,-490.0,0.00024931,3]
[368551573,1751203866862,-490.0,0.00024931,3]
[368551574,1751203866876,-1283.43,0.00024931,3]
[368551575,1751203866886,-729.14,0.00024931,3]
[368551576,1751203866895,-490.0,0.00024931,3]
[368551577,1751203866904,-769.49,0.00024931,3]
[368551578,1751203866913,-490.0,0.00024931,3]
[368551579,1751203866923,-447.32,0.00024931,3]
[368551580,1751203866932,-490.0,0.00024931,3]
[368551581,1751203866941,-490.0,0.00024931,3]
[368551582,1751203866951,-582.51,0.00024931,3]
[368551583,1751203866961,-1064.38,0.00024931,3]
[368551584,1751203866970,-1898.36,0.00024931,3]
[368551585,1751203866979,-490.0,0.00024931,3]
[368551586,1751203866989,-490.0,0.00024931,3]
[368551587,1751203866998,-490.0,0.00024931,3]
[368551588,1751203867007,-490.0,0.00024931,3]
[368551589,1751203867017,-898.53,0.00024931,3]
[368551590,1751203867028,-490.0,0.00024931,3]
[368551591,1751203867036,-1293.99,0.00024931,3]
[368551592,1751203867046,-490.0,0.00024931,3]
[368551593,1751203867055,-490.0,0.00024931,3]
[368551594,1751203867064,-1105.45,0.00024931,3]
[368551595,1751203867074,-904.56,0.00024931,3]
[368551596,1751203867083,-490.0,0.00024931,3]
[368551597,1751203867092,-490.0,0.00024931,3]
[368551598,1751203867102,-490.0,0.00024931,3]
[368551599,1751203867111,-490.0,0.00024931,3]
[368551600,1751203867120,-709.24,0.00024931,3]
[368551601,1751203867130,-945.46,0.00024931,3]
[368551602,1751203867139,-490.0,0.00024931,3]
[368551603,1751203867149,-490.0,0.00024931,3]
[368551604,1751203867160,-490.31,0.00024931,3]
[368551605,1751203867169,-2368.74,0.00024931,3]
[368551606,1751203867178,-643.48,0.00024931,3]
[368551607,1751203867188,-490.0,0.00024931,3]
[368551608,1751203867197,-490.0,0.00024931,3]
[368551609,1751203867206,-1300.11,0.00024931,3]
[368551610,1751203867215,-490.0,0.00024931,3]
[368551611,1751203867226,-948.15,0.00024931,3]
[368551612,1751203867235,-490.0,0.00024931,3]
[368551613,1751203867245,-490.0,0.00024931,3]
[368551614,1751203867255,-546.14285237,0.00024931,3]
[368551615,1751203867265,-490.0,0.00024931,3]
[368551616,1751203867274,-490.0,0.00024931,3]
[368551617,1751203867283,-490.0,0.00024931,3]
[368551618,1751203867292,-2811.65,0.00024931,3]
[368551619,1751203867302,-490.0,0.00024931,3]
[368551620,1751203867311,-508.76,0.00024931,3]
[368551621,1751203867321,-581.89,0.00024931,3]
[368551622,1751203867330,-963.26,0.00024931,3]
[368551623,1751203867339,-490.0,0.00024931,3]
[368551624,1751203867349,-490.0,0.00024931,3]
[368551625,1751203867358,-493.05,0.00024931,3]
[368551626,1751203867368,-300.0,0.00024931,4]
[368551627,1751203867378,-490.0,0.00024931,3]
[368551628,1751203867387,-490.0,0.00024931,3]
[368551629,1751203867397,-490.0,0.00024931,3]
[368551630,1751203867406,-490.0,0.00024931,3]
[368551631,1751203867415,-533.71,0.00024931,3]
[368551632,1751203867425,-470.0,0.00024931,3]
[368551633,1751203867435,-559.98,0.00024931,3]
[368551634,1751203867445,-560.94,0.00024931,3]
[368551635,1751203867454,-1151.03,0.00024931,3]
[368551636,1751203867464,-490.0,0.00024931,3]
[368551637,1751203867473,-490.0,0.00024931,3]
[368551638,1751203867482,-1593.95,0.00024931,3]
[368551639,1751203867492,-1669.43,0.00024931,3]
[368551640,1751203867502,-490.0,0.00024931,3]
[368551641,1751203867511,-490.0,0.00024931,3]
[368551642,1751203867520,-490.0,0.00024931,3]
[368551643,1751203867530,-490.0,0.00024931,3]
[368551644,1751203867539,-490.0,0.00024931,3]
[368551645,1751203867548,-1405.19,0.00024931,3]
[368551646,1751203867557,-490.0,0.00024931,3]
[368551647,1751203867567,-490.0,0.00024931,3]
[368551648,1751203867578,-490.0,0.00024931,3]
[368551649,1751203867589,-2086.81,0.00024931,3]
[368551650,1751203867599,-556.75,0.00024931,3]
[368551651,1751203867608,-490.0,0.00024931,3]
[368551652,1751203867618,-1341.02,0.00024931,3]
[368551653,1751203867627,-534.57,0.00024931,3]
[368551654,1751203867636,-1263.27,0.00024931,3]
[368551655,1751203867645,-505.51571617,0.00024931,3]
[368551656,1751203867655,-490.0,0.00024931,3]
[368551657,1751203867665,-490.0,0.00024931,3]
[368551658,1751203867674,-490.0,0.00024931,3]
[368551659,1751203867683,-490.0,0.00024931,3]
[368551660,1751203867693,-1339.9,0.00024931,3]
[368551661,1751203867702,-490.0,0.00024931,3]
[368551662,1751203867712,-490.0,0.00024931,3]
[368551663,1751203867721,-1277.38,0.00024931,3]
[368551664,1751203867730,-490.0,0.00024931,3]
[368551665,1751203867739,-490.0,0.00024931,3]
[368551666,1751203867749,-776.7,0.00024931,3]
[368551667,1751203867758,-490.0,0.00024931,3]
[368551668,1751203867767,-595.79,0.00024931,3]
[368551669,1751203867776,-490.0,0.00024931,3]
[368551670,1751203867785,-490.0,0.00024931,3]
[368551671,1751203867795,-490.0,0.00024931,3]
[368551672,1751203867804,-490.0,0.00024931,3]
[368551673,1751203867813,-490.0,0.00024931,3]
[368551674,1751203867822,-1520.68,0.00024931,3]
[368551675,1751203867831,-783.04,0.00024931,3]
[368551676,1751203867840,-967.69,0.00024931,3]
[368551677,1751203867850,-879.16,0.00024931,3]
[368551678,1751203867859,-490.0,0.00024931,3]
[368551679,1751203867870,-760.47,0.00024931,3]
[368551680,1751203867880,-490.0,0.00024931,3]
[368551681,1751203867889,-1291.44,0.00024931,3]
[368551682,1751203867898,-490.0,0.00024931,3]
[368551683,1751203867908,-490.0,0.00024931,3]
[368551684,1751203867917,-2255.66,0.00024931,3]
[368551685,1751203867927,-490.0,0.00024931,3]
[368551686,1751203867936,-490.0,0.00024931,3]
[368551687,1751203867946,-490.0,0.00024931,3]
[368551688,1751203867956,-2777.56,0.00024931,3]
[368551689,1751203867965,-151.0,0.00024931,7]
[368551690,1751203867975,-904.77,0.00024931,3]
[368551691,1751203867984,-151.0,0.00024931,7]
[368551692,1751203867993,-151.0,0.00024931,7]
[368551693,1751203868003,-2576.62,0.00024931,3]
[368551694,1751203868219,-1054.88,0.00024931,3]
[368551695,1751203868229,-1941.18,0.00024931,3]
[368551696,1751203868238,-490.0,0.00024931,3]
[368551697,1751203868248,-490.0,0.00024931,3]
[368551698,1751203868258,-490.0,0.00024931,3]
[368551699,1751203868267,-490.0,0.00024931,3]
[368551700,1751203868276,-490.0,0.00024931,3]
[368551701,1751203868285,-490.0,0.00024931,3]
[368551702,1751203868294,-490.0,0.00024931,3]
[368551703,1751203868303,-1554.0,0.00024931,3]
[368551704,1751203868312,-2146.92,0.00024931,3]
[368551705,1751203868321,-805.6,0.00024931,3]
[368551706,1751203868331,-176.39844746,0.00024931,3]
[368551707,1751203868340,-490.0,0.00024931,3]
[368551708,1751203868350,-490.0,0.00024931,3]
[368551709,1751203868358,-2412.14,0.00024931,3]
[368551710,1751203868368,-2482.06,0.00024931,3]
[368551711,1751203868377,-215.832078,0.00024931,7]
[368551712,1751203868387,-215.832078,0.00024931,7]
[368551713,1751203868396,-215.832078,0.00024931,7]
[368551714,1751203868405,-518.67,0.00024931,3]
[368551715,1751203868415,-490.0,0.00024931,3]
[368551716,1751203868425,-490.0,0.00024931,3]
[368551717,1751203868434,-490.0,0.00024931,3]
[368551718,1751203868444,-490.0,0.00024931,3]
[368551719,1751203868454,-1685.24,0.00024931,3]
[368551720,1751203868463,-490.0,0.00024931,3]
[368551721,1751203868472,-521.16342874,0.00024931,3]
[368551722,1751203868482,-215.832078,0.00024931,7]
[368551723,1751203868492,-490.0,0.00024931,3]
[368551724,1751203868503,-1824.4,0.00024931,3]
[368551725,1751203868512,-215.832078,0.00024931,7]
[368551726,1751203868522,-215.832078,0.00024931,7]
[368551727,1751203868532,-490.0,0.00024931,3]
[368551728,1751203868542,-490.0,0.00024931,3]
[368551729,1751203868551,-4354.5,0.00024931,3]
[368551730,1751203868560,-8055.2,0.00024931,3]
[368551731,1751203868571,-790.09,0.00024931,3]
[368551732,1751203868581,-1346.02,0.00024931,3]
[368551733,1751203868591,-1121.28,0.00024931,3]
[368551734,1751203868600,-490.0,0.00024931,3]
[368551735,1751203868609,-490.0,0.00024931,3]
[368551736,1751203868619,-490.0,0.00024931,3]
[368551737,1751203868628,-1534.76,0.00024931,3]
[368551738,1751203868637,-490.0,0.00024931,3]
[368551739,1751203868647,-1445.21,0.00024931,3]
[368551740,1751203868658,-896.62,0.00024931,3]
[368551741,1751203868668,-490.0,0.00024931,3]
[368551742,1751203868677,-9353.37,0.00024931,3]
[368551743,1751203868687,-490.0,0.00024931,3]
[368551744,1751203868696,-490.0,0.00024931,3]
[368551745,1751203868706,-1104.46,0.00024931,3]
[368551746,1751203868715,-490.0,0.00024931,3]
[368551747,1751203868726,-737.56,0.00024931,3]
[368551748,1751203868735,-1855.62,0.00024931,3]
[368551749,1751203868745,-490.0,0.00024931,3]
[368551750,1751203868754,-490.0,0.00024931,3]
[368551751,1751203868764,-538.92,0.00024931,3]
[368551752,1751203868773,-1914.94,0.00024931,3]
[368551753,1751203868782,-964.28,0.00024931,3]
[368551754,1751203868792,-1269.5,0.00024931,3]
[368551755,1751203868801,-248.73323565,0.00024931,3]
[368551756,1751203868810,-1164.93,0.00024931,3]
[368551757,1751203868820,-1771.98,0.00024931,3]
[368551758,1751203868830,-838.16,0.00024931,3]
[368551759,1751203868839,-1810.3,0.00024931,3]
[368551760,1751203868848,-490.0,0.00024931,3]
[368551761,1751203868857,-490.0,0.00024931,3]
[368551762,1751203868867,-490.0,0.00024931,3]
[368551763,1751203868876,-490.0,0.00024931,3]
[368551764,1751203868886,-4218.0,0.00024931,3]
[368551765,1751203868896,-5170.07,0.00024931,3]
[368551766,1751203868905,-490.0,0.00024931,3]
[368551767,1751203868914,-505.08,0.00024931,3]
[368551768,1751203868924,-3416.88,0.00024931,3]
[368551769,1751203868933,-463.68,0.00024931,3]
[368551770,1751203868943,-490.0,0.00024931,3]
[368551771,1751203868953,-490.0,0.00024931,3]
[368551772,1751203868962,-840.38,0.00024931,3]
[368551773,1751203868972,-2083.68,0.00024931,3]
[368551774,1751203868981,-490.0,0.00024931,3]
[368551775,1751203868991,-490.0,0.00024931,3]
[368551776,1751203869000,-3162.75,0.00024931,3]
[368551777,1751203869010,-490.0,0.00024931,3]
[368551778,1751203869019,-1186.26,0.00024931,3]
[368551779,1751203869028,-1464.78,0.00024931,3]
[368551780,1751203869037,-490.0,0.00024931,3]
[368551781,1751203869046,-500.56328977,0.00024931,3]
[368551782,1751203869056,-490.0,0.00024931,3]
[368551783,1751203869066,-490.0,0.00024931,3]
[368551784,1751203869075,-490.0,0.00024931,3]
[368551785,1751203869085,-1142.42,0.00024931,3]
[368551786,1751203869094,-490.0,0.00024931,3]
[368551787,1751203869103,-490.0,0.00024931,3]
[368551788,1751203869113,-490.0,0.00024931,3]
[368551789,1751203869122,-5070.32,0.00024931,3]
[368551790,1751203869131,-490.0,0.00024931,3]
[368551791,1751203869140,-1834.07,0.00024931,3]
[368551792,1751203869150,-4478.89,0.00024931,3]
[368551793,1751203869159,-171.022171,0.00024931,3]
[368551794,1751203869170,-654.73,0.00024931,3]
[368551795,1751203869179,-490.0,0.00024931,3]
[368551796,1751203869189,-21413.45,0.00024931,3]
[368551797,1751203869198,-959.51,0.00024931,3]
[368551798,1751203869208,-490.0,0.00024931,3]
[368551799,1751203869217,-1494.5,0.00024931,3]
[368551800,1751203869226,-490.0,0.00024931,3]
[368551801,1751203869235,-2513.16,0.00024931,3]
[368551802,1751203869245,-2345.67,0.00024931,3]
[368551803,1751203869254,-2043.47,0.00024931,3]
[368551804,1751203869263,-3298.44,0.00024931,3]
[368551805,1751203869272,-490.0,0.00024931,3]
[368551806,1751203869281,-490.0,0.00024931,3]
[368551807,1751203869291,-1419.79,0.00024931,3]
[368551808,1751203869300,-490.0,0.00024931,3]
[368551809,1751203869309,-490.0,0.00024931,3]
[368551810,1751203869319,-490.0,0.00024931,3]
[368551811,1751203869328,-490.0,0.00024931,3]
[368551812,1751203869337,-490.0,0.00024931,3]
[368551813,1751203869347,-1579.17,0.00024931,3]
[368551814,1751203869357,-1144.77,0.00024931,3]
[368551815,1751203869366,-2210.35,0.00024931,3]
[368551816,1751203869376,-1874.08,0.00024931,3]
[368551817,1751203869384,-286.01748,0.00024931,7]
[368551818,1751203869394,-286.01748,0.00024931,7]
[368551819,1751203869403,-286.01748,0.00024931,7]
[368551820,1751203869412,-7566.7,0.00024931,3]
[368551821,1751203869421,-2520.99,0.00024931,3]
[368551822,1751203869430,-600.3,0.00024931,3]
[368551823,1751203869439,-266.84333615,0.00024931,3]
[368551824,1751203869449,-490.0,0.00024931,3]
[368551825,1751203869458,-1672.95,0.00024931,3]
[368551826,1751203869467,-286.01748,0.00024931,7]
[368551827,1751203869476,-2844.41,0.00024931,3]
[368551828,1751203869487,-286.01748,0.00024931,7]
[368551829,1751203869497,-286.01748,0.00024931,7]
[368551830,1751203869507,-490.0,0.00024931,3]
[368551831,1751203869517,-1584.06,0.00024931,3]
[368551832,1751203869528,-490.0,0.00024931,3]
[368551833,1751203869539,-2332.51,0.00024931,3]
[368551834,1751203869548,-2140.49,0.00024931,3]
[368551835,1751203869557,-1773.25,0.00024931,3]
[368551836,1751203869567,-490.0,0.00024931,3]
[368551837,1751203869578,-490.0,0.00024931,3]
[368551838,1751203869587,-3610.62,0.00024931,3]
[368551839,1751203869596,-1118.21,0.00024931,3]
[368551840,1751203869606,-1608.48,0.00024931,3]
[368551841,1751203869615,-2096.08,0.00024931,3]
[368551842,1751203869626,-10947.26,0.00024931,3]
[368551843,1751203869635,-490.0,0.00024931,3]
[368551844,1751203869644,-1428.71,0.00024931,3]
[368551845,1751203869654,-490.0,0.00024931,3]
[368551846,1751203869664,-490.0,0.00024931,3]
[368551847,1751203869673,-490.0,0.00024931,3]
[368551848,1751203869683,-490.0,0.00024931,3]
[368551849,1751203869692,-1350.53,0.00024931,3]
[368551850,1751203869701,-862.51,0.00024931,3]
[368551851,1751203869710,-490.0,0.00024931,3]
[368551852,1751203869719,-1250.32,0.00024931,3]
[368551853,1751203869728,-2228.68,0.00024931,3]
[368551854,1751203869738,-490.0,0.00024931,3]
[368551855,1751203869747,-3213.37,0.00024931,3]
[368551856,1751203869756,-2699.04,0.00024931,3]
[368551857,1751203869766,-4210.45,0.00024931,3]
[368551858,1751203869775,-490.0,0.00024931,3]
[368551859,1751203869784,-2429.59,0.00024931,3]
[368551860,1751203869794,-1100.42,0.00024931,3]
[368551861,1751203869803,-490.0,0.00024931,3]
[368551862,1751203869812,-2148.76,0.00024931,3]
[368551863,1751203869821,-490.0,0.00024931,3]
[368551864,1751203869831,-151.0,0.00024931,7]
[368551865,1751203869840,-151.0,0.00024931,7]
[368551866,1751203869849,-516.06,0.00024931,3]
[368551867,1751203870057,-1006.01,0.00024931,3]
[368551868,1751203870068,-899.6,0.00024931,3]
[368551869,1751203870077,-151.0,0.00024931,7]
[368551870,1751203870086,-490.0,0.00024931,3]
[368551871,1751203870096,-2942.81,0.00024931,3]
[368551872,1751203870105,-2195.78,0.00024931,3]
[368551873,1751203870114,-2736.36,0.00024931,3]
[368551874,1751203870123,-1981.92,0.00024931,3]
[368551875,1751203870132,-490.0,0.00024931,3]
[368551876,1751203870141,-151.0,0.00024931,7]
[368551877,1751203870151,-151.0,0.00024931,7]
[368551878,1751203870161,-333.19844636,0.00024931,3]
[368551879,1751203870170,-151.0,0.00024931,7]
[368551880,1751203870179,-4246.62,0.00024931,3]
[368551881,1751203870188,-690.49,0.00024931,3]
[368551882,1751203870197,-2711.14,0.00024931,3]
[368551883,1751203870206,-1195.48,0.00024931,3]
[368551884,1751203870216,-490.0,0.00024931,3]
[368551885,1751203870226,-490.0,0.00024931,3]
[368551886,1751203870235,-5597.06,0.00024931,3]
[368551887,1751203870245,-490.0,0.00024931,3]
[368551888,1751203870254,-1167.51,0.00024931,3]
[368551889,1751203870263,-4174.59,0.00024931,3]
[368551890,1751203870272,-1091.11,0.00024931,3]
[368551891,1751203870282,-490.0,0.00024931,3]
[368551892,1751203870291,-642.4,0.00024931,3]
[368551893,1751203870300,-490.0,0.00024931,3]
[368551894,1751203870309,-2941.21,0.00024931,3]
[368551895,1751203870318,-1552.49,0.00024931,3]
[368551896,1751203870328,-2007.7,0.00024931,3]
[368551897,1751203870337,-490.0,0.00024931,3]
[368551898,1751203870346,-490.0,0.00024931,3]
[368551899,1751203870355,-623.41,0.00024931,3]
[368551900,1751203870365,-230.87093625,0.00024931,3]
[368551901,1751203870375,-2471.06,0.00024931,3]
[368551902,1751203870384,-882.65,0.00024931,3]
[368551903,1751203870394,-560.89,0.00024931,3]
[368551904,1751203870403,-490.0,0.00024931,3]
[368551905,1751203870412,-490.0,0.00024931,3]
[368551906,1751203870421,-3714.96,0.00024931,3]
[368551907,1751203870431,-490.0,0.00024931,3]
[368551908,1751203870440,-19510.67,0.00024931,3]
[368551909,1751203870449,-1848.87,0.00024931,3]
[368551910,1751203870459,-2810.25,0.00024931,3]
[368551911,1751203870467,-2853.32,0.00024931,3]
[368551912,1751203870477,-11511.85,0.00024931,3]
[368551913,1751203870488,-893.94,0.00024931,3]
[368551914,1751203870500,-490.0,0.00024931,3]
[368551915,1751203870509,-595.04,0.00024931,3]
[368551916,1751203870518,-490.0,0.00024931,3]
[368551917,1751203870527,-1139.81,0.00024931,3]
[368551918,1751203870536,-490.0,0.00024931,3]
[368551919,1751203870546,-490.0,0.00024931,3]
[368551920,1751203870555,-490.0,0.00024931,3]
[368551921,1751203870564,-517.42971948,0.00024931,3]
[368551922,1751203870576,-2491.11,0.00024931,3]
[368551923,1751203870585,-490.0,0.00024931,3]
[368551924,1751203870595,-307.27820905,0.00024931,3]
[368551925,1751203870603,-4313.46,0.00024931,3]
[368551926,1751203870612,-7170.19,0.00024931,3]
[368551927,1751203870621,-1731.53,0.00024931,3]
[368551928,1751203870630,-490.0,0.00024931,3]
[368551929,1751203870639,-490.0,0.00024931,3]
[368551930,1751203870649,-2750.3,0.00024931,3]
[368551931,1751203870658,-490.0,0.00024931,3]
[368551932,1751203870668,-862.89,0.00024931,3]
[368551933,1751203870676,-490.0,0.00024931,3]
[368551934,1751203870686,-490.0,0.00024931,3]
[368551935,1751203870695,-1580.96,0.00024931,3]
[368551936,1751203870704,-1174.98,0.00024931,3]
[368551937,1751203870713,-490.0,0.00024931,3]
[368551938,1751203870722,-1000.0,0.00024931,3]
[368551939,1751203870731,-785.69,0.00024931,3]
[368551940,1751203870740,-490.0,0.00024931,3]
[368551941,1751203870749,-2195.53,0.00024931,3]
[368551942,1751203870759,-1469.99,0.00024931,3]
[368551943,1751203870768,-562.82,0.00024931,3]
[368551944,1751203870777,-1197.7,0.00024931,3]
[368551945,1751203870787,-5448.22,0.00024931,3]
[368551946,1751203870796,-490.0,0.00024931,3]
[368551947,1751203870805,-2438.34,0.00024931,3]
[368551948,1751203870814,-4117.22,0.00024931,3]
[368551949,1751203870823,-490.0,0.00024931,3]
[368551950,1751203870832,-490.0,0.00024931,3]
[368551951,1751203870842,-632.74,0.00024931,3]
[368551952,1751203870851,-3780.85,0.00024931,3]
[368551953,1751203870861,-1302.24,0.00024931,3]
[368551954,1751203870870,-1515.35,0.00024931,3]
[368551955,1751203870880,-633.75,0.00024931,3]
[368551956,1751203870890,-2871.65,0.00024931,3]
[368551957,1751203870900,-1694.0,0.00024931,3]
[368551958,1751203870909,-702.39,0.00024931,3]
[368551959,1751203870919,-236.447322,0.00024931,7]
[368551960,1751203870929,-1774.89,0.00024931,3]
[368551961,1751203870939,-490.0,0.00024931,3]
[368551962,1751203870948,-21316.63,0.00024931,3]
[368551963,1751203870958,-3969.08,0.00024931,3]
[368551964,1751203870967,-1538.95,0.00024931,3]
[368551965,1751203870976,-490.0,0.00024931,3]
[368551966,1751203870986,-490.0,0.00024931,3]
[368551967,1751203870995,-7251.82,0.00024931,3]
[368551968,1751203871005,-2018.96,0.00024931,3]
[368551969,1751203871015,-674.93,0.00024931,3]
[368551970,1751203871024,-490.0,0.00024931,3]
[368551971,1751203871033,-490.0,0.00024931,3]
[368551972,1751203871042,-490.0,0.00024931,3]
[368551973,1751203871051,-964.64,0.00024931,3]
[368551974,1751203871061,-2787.9,0.00024931,3]
[368551975,1751203871070,-490.0,0.00024931,3]
[368551976,1751203871079,-490.0,0.00024931,3]
[368551977,1751203871089,-1519.36,0.00024931,3]
[368551978,1751203871098,-490.0,0.00024931,3]
[368551979,1751203871108,-500.0,0.00024931,3]
[368551980,1751203871117,-866.1,0.00024931,3]
[368551981,1751203871126,-490.0,0.00024931,3]
[368551982,1751203871136,-2132.45,0.00024931,3]
[368551983,1751203871146,-534.21,0.00024931,3]
[368551984,1751203871155,-4105.87,0.00024931,3]
[368551985,1751203871164,-2581.37,0.00024931,3]
[368551986,1751203871174,-1992.35,0.00024931,3]
[368551987,1751203871183,-490.0,0.00024931,3]
[368551988,1751203871192,-4392.09,0.00024931,3]
[368551989,1751203871201,-490.0,0.00024931,3]
[368551990,1751203871210,-1476.02,0.00024931,3]
[368551991,1751203871219,-151.0,0.00024931,7]
[368551992,1751203871229,-490.0,0.00024931,3]
[368551993,1751203871238,-3101.44,0.00024931,3]
[368551994,1751203871247,-157.014676,0.00024931,7]
[368551995,1751203871257,-490.0,0.00024931,3]
[368551996,1751203871266,-2415.04,0.00024931,3]
[368551997,1751203871275,-888.36,0.00024931,3]
[368551998,1751203871285,-490.0,0.00024931,3]
[368551999,1751203871295,-496.4,0.00024931,3]
[368552000,1751203871303,-490.0,0.00024931,3]
[368552001,1751203871313,-1606.97,0.00024931,3]
[368552002,1751203871324,-1064.49,0.00024931,3]
[368552003,1751203871334,-2148.51,0.00024931,3]
[368552004,1751203871344,-5123.58,0.00024931,3]
[368552005,1751203871354,-16419.88,0.00024931,3]
[368552006,1751203871365,-2652.97,0.00024931,3]
[368552007,1751203871375,-1534.28,0.00024931,3]
[368552008,1751203871385,-2833.2,0.00024931,3]
[368552009,1751203871394,-490.0,0.00024931,3]
[368552010,1751203871403,-524.13,0.00024931,3]
[368552011,1751203871412,-2353.94,0.00024931,3]
[368552012,1751203871421,-1359.99,0.00024931,3]